fUSD/lending_fUSD_20260429
["ID","MTS","AMOUNT","RATE_DAILY","PERIOD"]
[421340278,1777471844000,-500.0,0.00013698,2]
[421340277,1777471844000,-500.0,0.00013698,2]
[421340289,1777471844000,-500.0,0.00013698,2]
[421340282,1777471844000,-172.50217332,0.00013698,2]
[421340288,1777471844000,-500.0,0.00013698,2]
[421340294,1777471844000,-500.0,0.00013698,2]
[421340291,1777471844000,-500.0,0.00013698,2]
[421340290,1777471844000,-500.0,0.00013698,2]
[421340302,1777471844000,-500.0,0.00013698,2]
[421340301,1777471844000,-500.0,0.00013698,2]
[421340304,1777471844000,-500.0,0.00013698,2]
[421340300,1777471844000,-500.0,0.00013698,2]
[421340299,1777471844000,-500.0,0.00013698,2]
[421340303,1777471844000,-500.0,0.00013698,2]
[421340296,1777471844000,-500.0,0.00013698,2]
[421340297,1777471844000,-500.0,0.00013698,2]
[421340295,1777471844000,-500.0,0.00013698,2]
[421340292,1777471844000,-445.62,0.00013698,2]
[421340293,1777471844000,-500.0,0.00013698,2]
[421340298,1777471844000,-500.0,0.00013698,2]
[421340342,1777471845000,-221.0,0.00013699,2]
[421340332,1777471845000,-293.0,0.00013699,2]
[421340331,1777471845000,-438.0,0.00013699,2]
[421340333,1777471845000,-600.0,0.00013699,2]
[421340334,1777471845000,-399.0,0.00013699,2]
[421340335,1777471845000,-201.0,0.00013699,2]
[421340337,1777471845000,-386.0,0.00013699,2]
[421340338,1777471845000,-214.0,0.00013699,2]
[421340343,1777471845000,-424.0,0.00013699,2]
[421340340,1777471845000,-154.0,0.00013699,2]
[421340350,1777471845000,-227.0,0.00013699,2]
[421340341,1777471845000,-379.0,0.00013699,2]
[421340339,1777471845000,-446.0,0.00013699,2]
[421340345,1777471845000,-375.0,0.00013699,2]
[421340348,1777471845000,-189.0,0.00013699,2]
[421340330,1777471845000,-293.0,0.00013699,2]
[421340344,1777471845000,-176.0,0.00013699,2]
[421340347,1777471845000,-411.0,0.00013699,2]
[421340346,1777471845000,-225.0,0.00013699,2]
[421340351,1777471845000,-403.0,0.00013699,2]
[421340349,1777471845000,-373.0,0.00013699,2]
[421340336,1777471845000,-600.0,0.00013699,2]
[421340329,1777471845000,-438.0,0.00013699,2]
[421340352,1777471845000,-197.0,0.00013699,2]
[421340327,1777471845000,-200.0,0.00013699,2]
[421340305,1777471845000,-500.0,0.00013698,2]
[421340307,1777471845000,-500.0,0.00013698,2]
[421340308,1777471845000,-500.0,0.00013698,2]
[421340309,1777471845000,-295.39381884,0.00013698,2]
[421340306,1777471845000,-500.0,0.00013698,2]
[421340310,1777471845000,-500.0,0.00013698,2]
[421340313,1777471845000,-500.0,0.00013698,2]
[421340314,1777471845000,-500.0,0.00013698,2]
[421340312,1777471845000,-500.0,0.00013698,2]
[421340311,1777471845000,-500.0,0.00013698,2]
[421340328,1777471845000,-1000.0,0.00013699,7]
[421340316,1777471845000,-500.0,0.00013698,2]
[421340317,1777471845000,-500.0,0.00013698,2]
[421340318,1777471845000,-404.279322,0.00013698,2]
[421340324,1777471845000,-718.37,0.00013699,2]
[421340323,1777471845000,-500.0,0.00013698,2]
[421340321,1777471845000,-500.0,0.00013698,2]
[421340319,1777471845000,-500.0,0.00013698,2]
[421340322,1777471845000,-500.0,0.00013698,2]
[421340320,1777471845000,-500.0,0.00013698,2]
[421340326,1777471845000,-2500.0,0.00013699,2]
[421340325,1777471845000,-200.0,0.00013699,2]
[421340315,1777471845000,-500.0,0.00013698,2]
[421340353,1777471845000,-371.0,0.00013699,2]
[421340392,1777471845000,-1162.4681862,0.00013699,2]
[421340354,1777471845000,-229.0,0.00013699,2]
[421340388,1777471845000,-1162.4681862,0.00013699,2]
[421340383,1777471845000,-1162.4681862,0.00013699,2]
[421340393,1777471845000,-1162.4681862,0.00013699,2]
[421340395,1777471845000,-1162.4681862,0.00013699,2]
[421340394,1777471845000,-1162.4681862,0.00013699,2]
[421340396,1777471845000,-1162.4681862,0.00013699,2]
[421340398,1777471845000,-1162.4681862,0.00013699,2]
[421340397,1777471845000,-1162.4681862,0.00013699,2]
[421340399,1777471845000,-1162.4681862,0.00013699,2]
[421340401,1777471845000,-1162.4681862,0.00013699,2]
[421340400,1777471845000,-1162.4681862,0.00013699,2]
[421340402,1777471845000,-1162.4681862,0.00013699,2]
[421340406,1777471845000,-1162.4681862,0.00013699,2]
[421340404,1777471845000,-1162.4681862,0.00013699,2]
[421340407,1777471845000,-1162.4681862,0.00013699,2]
[421340403,1777471845000,-1162.4681862,0.00013699,2]
[421340405,1777471845000,-1162.4681862,0.00013699,2]
[421340409,1777471845000,-1162.4681862,0.00013699,2]
[421340411,1777471845000,-1162.4681862,0.00013699,2]
[421340410,1777471845000,-1162.4681862,0.00013699,2]
[421340355,1777471845000,-1162.4681862,0.00013699,2]
[421340387,1777471845000,-1162.4681862,0.00013699,2]
[421340389,1777471845000,-1162.4681862,0.00013699,2]
[421340408,1777471845000,-1162.4681862,0.00013699,2]
[421340385,1777471845000,-1162.4681862,0.00013699,2]
[421340391,1777471845000,-1162.4681862,0.00013699,2]
[421340356,1777471845000,-1162.4681862,0.00013699,2]
[421340357,1777471845000,-1162.4681862,0.00013699,2]
[421340358,1777471845000,-1162.4681862,0.00013699,2]
[421340362,1777471845000,-1162.4681862,0.00013699,2]
[421340359,1777471845000,-1162.4681862,0.00013699,2]
[421340363,1777471845000,-1162.4681862,0.00013699,2]
[421340360,1777471845000,-1162.4681862,0.00013699,2]
[421340364,1777471845000,-1162.4681862,0.00013699,2]
[421340370,1777471845000,-1162.4681862,0.00013699,2]
[421340366,1777471845000,-1162.4681862,0.00013699,2]
[421340361,1777471845000,-1162.4681862,0.00013699,2]
[421340367,1777471845000,-1162.4681862,0.00013699,2]
[421340368,1777471845000,-1162.4681862,0.00013699,2]
[421340381,1777471845000,-1162.4681862,0.00013699,2]
[421340390,1777471845000,-1162.4681862,0.00013699,2]
[421340377,1777471845000,-1162.4681862,0.00013699,2]
[421340379,1777471845000,-1162.4681862,0.00013699,2]
[421340369,1777471845000,-1162.4681862,0.00013699,2]
[421340372,1777471845000,-1162.4681862,0.00013699,2]
[421340365,1777471845000,-1162.4681862,0.00013699,2]
[421340374,1777471845000,-1162.4681862,0.00013699,2]
[421340386,1777471845000,-1162.4681862,0.00013699,2]
[421340441,1777471846000,-1150.84350433,0.00013699,2]
[421340439,1777471846000,-1150.84350433,0.00013699,2]
[421340437,1777471846000,-1150.84350433,0.00013699,2]
[421340440,1777471846000,-1150.84350433,0.00013699,2]
[421340432,1777471846000,-1150.84350433,0.00013699,2]
[421340438,1777471846000,-231.0,0.00013699,2]
[421340435,1777471846000,-1150.84350433,0.00013699,2]
[421340436,1777471846000,-1150.84350433,0.00013699,2]
[421340448,1777471846000,-1150.84350433,0.00013699,2]
[421340442,1777471846000,-1150.84350433,0.00013699,2]
[421340449,1777471846000,-1150.84350433,0.00013699,2]
[421340447,1777471846000,-1150.84350433,0.00013699,2]
[421340445,1777471846000,-1150.84350433,0.00013699,2]
[421340444,1777471846000,-1150.84350433,0.00013699,2]
[421340446,1777471846000,-1150.84350433,0.00013699,2]
[421340450,1777471846000,-1150.84350433,0.00013699,2]
[421340434,1777471846000,-1150.84350433,0.00013699,2]
[421340443,1777471846000,-1150.84350433,0.00013699,2]
[421340433,1777471846000,-1150.84350433,0.00013699,2]
[421340415,1777471846000,-1162.4681862,0.00013699,2]
[421340431,1777471846000,-1150.84350433,0.00013699,2]
[421340453,1777471846000,-208.0,0.00013699,2]
[421340412,1777471846000,-1162.4681862,0.00013699,2]
[421340413,1777471846000,-1162.4681862,0.00013699,2]
[421340417,1777471846000,-1162.4681862,0.00013699,2]
[421340421,1777471846000,-396.0,0.00013699,2]
[421340418,1777471846000,-1162.4681862,0.00013699,2]
[421340416,1777471846000,-1162.4681862,0.00013699,2]
[421340414,1777471846000,-1162.4681862,0.00013699,2]
[421340430,1777471846000,-1150.84350433,0.00013699,2]
[421340419,1777471846000,-1162.4681862,0.00013699,2]
[421340423,1777471846000,-1150.84350433,0.00013699,2]
[421340422,1777471846000,-204.0,0.00013699,2]
[421340424,1777471846000,-1150.84350433,0.00013699,2]
[421340425,1777471846000,-1150.84350433,0.00013699,2]
[421340426,1777471846000,-1150.84350433,0.00013699,2]
[421340429,1777471846000,-1150.84350433,0.00013699,2]
[421340427,1777471846000,-369.0,0.00013699,2]
[421340428,1777471846000,-1150.84350433,0.00013699,2]
[421340420,1777471846000,-1162.4681862,0.00013699,2]
[421340461,1777471846000,-367.0,0.00013699,2]
[421340451,1777471846000,-1150.84350433,0.00013699,2]
[421340456,1777471846000,-1150.84350434,0.00013699,2]
[421340499,1777471846000,-503.0,0.00013967,2]
[421340500,1777471846000,-590.0,0.00013967,2]
[421340493,1777471846000,-162.0,0.00013699,2]
[421340501,1777471846000,-1343.68592632,0.00013981,2]
[421340490,1777471846000,-352.0,0.00013699,2]
[421340495,1777471846000,-244.0,0.00013699,2]
[421340498,1777471846000,-150.0,0.00013834,2]
[421340497,1777471846000,-158.36,0.00013753,2]
[421340492,1777471846000,-235.0,0.00013699,2]
[421340496,1777471846000,-544.5,0.000137,2]
[421340504,1777471846000,-506.0086978,0.00014,2]
[421340505,1777471846000,-993.9913022,0.00014,2]
[421340510,1777471846000,-240.0,0.00014268,2]
[421340508,1777471846000,-181.0,0.00014268,2]
[421340509,1777471846000,-688.0,0.00014268,2]
[421340507,1777471846000,-429.0,0.00014268,2]
[421340502,1777471846000,-300.0,0.00013989,2]
[421340452,1777471846000,-392.0,0.00013699,2]
[421340503,1777471846000,-40217.73148314,0.0001399,2]
[421340494,1777471846000,-356.0,0.00013699,2]
[421340506,1777471846000,-285.78132935,0.00014247,21]
[421340487,1777471846000,-366.0,0.00013699,2]
[421340454,1777471846000,-1150.84350434,0.00013699,2]
[421340491,1777471846000,-365.0,0.00013699,2]
[421340455,1777471846000,-1150.84350434,0.00013699,2]
[421340459,1777471846000,-388.0,0.00013699,2]
[421340460,1777471846000,-212.0,0.00013699,2]
[421340458,1777471846000,-232.0,0.00013699,2]
[421340468,1777471846000,-249.0,0.00013699,2]
[421340464,1777471846000,-215.0,0.00013699,2]
[421340462,1777471846000,-233.0,0.00013699,2]
[421340457,1777471846000,-368.0,0.00013699,2]
[421340463,1777471846000,-385.0,0.00013699,2]
[421340470,1777471846000,-234.0,0.00013699,2]
[421340465,1777471846000,-367.0,0.00013699,2]
[421340469,1777471846000,-366.0,0.00013699,2]
[421340466,1777471846000,-233.0,0.00013699,2]
[421340471,1777471846000,-352.0,0.00013699,2]
[421340472,1777471846000,-248.0,0.00013699,2]
[421340467,1777471846000,-351.0,0.00013699,2]
[421340489,1777471846000,-248.0,0.00013699,2]
[421340488,1777471846000,-234.0,0.00013699,2]
[421340562,1777471847000,-250.0,0.00015616,2]
[421340548,1777471847000,-233.0,0.00015268,2]
[421340547,1777471847000,-240.0,0.00015268,2]
[421340549,1777471847000,-2511.0,0.00015268,2]
[421340542,1777471847000,-600.0,0.0001507,2]
[421340543,1777471847000,-300.0,0.000151,2]
[421340544,1777471847000,-429.0,0.00015268,2]
[421340538,1777471847000,-3951.0,0.00015,2]
[421340555,1777471847000,-155.68,0.00015411,2]
[421340540,1777471847000,-900.0,0.00015068,2]
[421340545,1777471847000,-181.0,0.00015268,2]
[421340550,1777471847000,-406.0,0.00015268,2]
[421340558,1777471847000,-300.0,0.0001547,2]
[421340551,1777471847000,-162.0,0.00015268,2]
[421340552,1777471847000,-400.0,0.0001527,2]
[421340554,1777471847000,-513.92947314,0.000154,2]
[421340556,1777471847000,-500.0,0.00015416,2]
[421340564,1777471847000,-544.5,0.000157,2]
[421340561,1777471847000,-1234.70468759,0.000155,2]
[421340563,1777471847000,-1593.12334993,0.00015634,2]
[421340559,1777471847000,-400.0,0.0001547,2]
[421340560,1777471847000,-300.0,0.0001547,2]
[421340557,1777471847000,-400.0,0.0001547,2]
[421340539,1777471847000,-150.0,0.00015068,2]
[421340553,1777471847000,-1517.64,0.000153,2]
[421340541,1777471847000,-150.0,0.00015068,2]
[421340516,1777471847000,-787.66,0.00014408,2]
[421340535,1777471847000,-1084.0,0.00015,2]
[421340511,1777471847000,-233.0,0.00014268,2]
[421340513,1777471847000,-406.0,0.00014268,2]
[421340521,1777471847000,-286.54,0.00014804,2]
[421340518,1777471847000,-197.88,0.000147,2]
[421340522,1777471847000,-180.13240783,0.00014806,2]
[421340517,1777471847000,-788.12,0.00014408,2]
[421340512,1777471847000,-2511.0,0.00014268,2]
[421340514,1777471847000,-162.0,0.00014268,2]
[421340520,1777471847000,-286.53,0.00014799,2]
[421340519,1777471847000,-210.85,0.00014781,2]
[421340515,1777471847000,-6930.06777033,0.00014351,2]
[421340537,1777471847000,-160.0,0.00015,2]
[421340525,1777471847000,-503.0,0.00014967,2]
[421340529,1777471847000,-3900.0,0.00015,2]
[421340531,1777471847000,-2000.0,0.00015,2]
[421340530,1777471847000,-300.0,0.00015,2]
[421340533,1777471847000,-300.0,0.00015,2]
[421340526,1777471847000,-590.0,0.00014967,2]
[421340524,1777471847000,-689.76361971,0.000149,2]
[421340527,1777471847000,-2072.26998158,0.00015,2]
[421340532,1777471847000,-472.78373562,0.00015,2]
[421340528,1777471847000,-426.97861011,0.00015,2]
[421340534,1777471847000,-162.0,0.00015,2]
[421340536,1777471847000,-447.0,0.00015,2]
[421340523,1777471847000,-150.0,0.00014834,2]
[421340565,1777471847000,-7458.8972907,0.00015718,13]
[421340546,1777471847000,-688.0,0.00015268,2]
[421340567,1777471847000,-1266.0,0.00015897,2]
[421340596,1777471847000,-2500.0,0.00016438,2]
[421340600,1777471847000,-500.0,0.00016438,2]
[421340597,1777471847000,-373.9266559,0.00016438,2]
[421340598,1777471847000,-500.0,0.00016438,2]
[421340601,1777471847000,-500.0,0.00016438,2]
[421340602,1777471847000,-500.0,0.00016438,2]
[421340603,1777471847000,-500.0,0.00016438,2]
[421340607,1777471847000,-229.43,0.00016438,2]
[421340604,1777471847000,-500.0,0.00016438,2]
[421340605,1777471847000,-295.73711329,0.00016438,2]
[421340606,1777471847000,-150.0,0.00016438,2]
[421340595,1777471847000,-1459.7,0.00016438,2]
[421340608,1777471847000,-500.0,0.00016438,2]
[421340609,1777471847000,-150.0,0.00016438,2]
[421340611,1777471847000,-500.0,0.00016438,2]
[421340613,1777471847000,-500.0,0.00016438,2]
[421340612,1777471847000,-500.0,0.00016438,2]
[421340616,1777471847000,-900.0,0.00016438,2]
[421340620,1777471847000,-500.0,0.00016438,2]
[421340615,1777471847000,-500.0,0.00016438,2]
[421340614,1777471847000,-500.0,0.00016438,2]
[421340618,1777471847000,-500.0,0.00016438,2]
[421340617,1777471847000,-500.0,0.00016438,2]
[421340619,1777471847000,-500.0,0.00016438,2]
[421340610,1777471847000,-500.0,0.00016438,2]
[421340599,1777471847000,-500.0,0.00016438,2]
[421340566,1777471847000,-150.0,0.00015834,2]
[421340593,1777471847000,-834.53,0.00016438,2]
[421340568,1777471847000,-927.0,0.00015897,2]
[421340569,1777471847000,-1220.0,0.00015897,2]
[421340578,1777471847000,-150.0,0.00016109,2]
[421340571,1777471847000,-503.0,0.00015967,2]
[421340570,1777471847000,-1663.0,0.000159,2]
[421340573,1777471847000,-187.0,0.00016,2]
[421340575,1777471847000,-200.0,0.00016,2]
[421340594,1777471847000,-1390.88,0.00016438,2]
[421340572,1777471847000,-590.0,0.00015967,2]
[421340576,1777471847000,-150.0,0.00016109,2]
[421340574,1777471847000,-162.31979731,0.00016,3]
[421340580,1777471847000,-1350.0,0.00016109,2]
[421340577,1777471847000,-150.0,0.00016109,2]
[421340582,1777471847000,-350.0,0.00016164,2]
[421340579,1777471847000,-1049.0,0.00016109,2]
[421340590,1777471847000,-2511.0,0.00016268,2]
[421340591,1777471847000,-406.0,0.00016268,2]
[421340587,1777471847000,-688.0,0.00016268,2]
[421340586,1777471847000,-181.0,0.00016268,2]
[421340592,1777471847000,-162.0,0.00016268,2]
[421340588,1777471847000,-240.0,0.00016268,2]
[421340583,1777471847000,-2000.0,0.000162,2]
[421340581,1777471847000,-9999.99,0.00016116,2]
[421340584,1777471847000,-209.11029354,0.000162,2]
[421340589,1777471847000,-233.0,0.00016268,2]
[421340585,1777471847000,-429.0,0.00016268,2]
[421340659,1777471848000,-2000.0,0.00016692,2]
[421340657,1777471848000,-2000.0,0.00016692,2]
[421340655,1777471848000,-2000.0,0.00016692,2]
[421340656,1777471848000,-2000.0,0.00016692,2]
[421340648,1777471848000,-500.0,0.00016438,2]
[421340651,1777471848000,-299.9014806,0.000165,5]
[421340654,1777471848000,-2000.0,0.00016692,2]
[421340652,1777471848000,-400.0,0.00016655,2]
[421340653,1777471848000,-2000.0,0.00016692,2]
[421340650,1777471848000,-160.22145207,0.000165,2]
[421340658,1777471848000,-2000.0,0.00016692,2]
[421340678,1777471848000,-1400.0,0.00016741,2]
[421340663,1777471848000,-2000.0,0.00016692,2]
[421340660,1777471848000,-2000.0,0.00016692,2]
[421340666,1777471848000,-2000.0,0.00016692,2]
[421340667,1777471848000,-2000.0,0.00016692,2]
[421340664,1777471848000,-2000.0,0.00016692,2]
[421340662,1777471848000,-2000.0,0.00016692,2]
[421340665,1777471848000,-2000.0,0.00016692,2]
[421340670,1777471848000,-450.0,0.00016712,2]
[421340679,1777471848000,-1400.0,0.00016741,2]
[421340671,1777471848000,-1400.0,0.00016741,2]
[421340672,1777471848000,-1400.0,0.00016741,2]
[421340649,1777471848000,-500.0,0.00016438,2]
[421340661,1777471848000,-2000.0,0.00016692,2]
[421340647,1777471848000,-500.0,0.00016438,2]
[421340632,1777471848000,-500.0,0.00016438,2]
[421340643,1777471848000,-409.52919453,0.00016438,2]
[421340675,1777471848000,-1400.0,0.00016741,2]
[421340623,1777471848000,-500.0,0.00016438,2]
[421340621,1777471848000,-500.0,0.00016438,2]
[421340622,1777471848000,-500.0,0.00016438,2]
[421340624,1777471848000,-500.0,0.00016438,2]
[421340626,1777471848000,-500.0,0.00016438,2]
[421340628,1777471848000,-500.0,0.00016438,2]
[421340625,1777471848000,-500.0,0.00016438,2]
[421340635,1777471848000,-500.0,0.00016438,2]
[421340627,1777471848000,-500.0,0.00016438,2]
[421340629,1777471848000,-500.0,0.00016438,2]
[421340644,1777471848000,-500.0,0.00016438,2]
[421340631,1777471848000,-500.0,0.00016438,2]
[421340633,1777471848000,-500.0,0.00016438,2]
[421340634,1777471848000,-500.0,0.00016438,2]
[421340637,1777471848000,-500.0,0.00016438,2]
[421340645,1777471848000,-500.0,0.00016438,2]
[421340646,1777471848000,-500.0,0.00016438,2]
[421340636,1777471848000,-500.0,0.00016438,2]
[421340642,1777471848000,-500.0,0.00016438,2]
[421340641,1777471848000,-500.0,0.00016438,2]
[421340639,1777471848000,-399.10487114,0.00016438,2]
[421340638,1777471848000,-500.0,0.00016438,2]
[421340640,1777471848000,-500.0,0.00016438,2]
[421340630,1777471848000,-191.76983454,0.00016438,2]
[421340669,1777471848000,-234.33,0.00016712,2]
[421340668,1777471848000,-1400.0,0.00016692,2]
[421340676,1777471848000,-1400.0,0.00016741,2]
[421340707,1777471848000,-1000.0,0.00016986,2]
[421340705,1777471848000,-1000.0,0.00016986,2]
[421340706,1777471848000,-1000.0,0.00016986,2]
[421340709,1777471848000,-1000.0,0.00016986,2]
[421340713,1777471848000,-1000.0,0.00016986,2]
[421340712,1777471848000,-1000.0,0.00016986,2]
[421340710,1777471848000,-1000.0,0.00016986,2]
[421340711,1777471848000,-1000.0,0.00016986,2]
[421340715,1777471848000,-1000.0,0.00016986,2]
[421340718,1777471848000,-1000.0,0.00016986,2]
[421340724,1777471848000,-7987.72681107,0.00017085,33]
[421340719,1777471848000,-1000.0,0.00016986,2]
[421340722,1777471848000,-1000.0,0.00016986,2]
[421340721,1777471848000,-297.96723878,0.00016986,2]
[421340720,1777471848000,-1000.0,0.00016986,2]
[421340716,1777471848000,-425.21843044,0.00016986,2]
[421340717,1777471848000,-1000.0,0.00016986,2]
[421340725,1777471848000,-556.35,0.00017117,2]
[421340723,1777471848000,-350.0,0.00017,2]
[421340729,1777471848000,-688.0,0.00017268,2]
[421340726,1777471848000,-550.0,0.0001726,2]
[421340727,1777471848000,-429.0,0.00017268,2]
[421340728,1777471848000,-181.0,0.00017268,2]
[421340730,1777471848000,-240.0,0.00017268,2]
[421340673,1777471848000,-1400.0,0.00016741,2]
[421340703,1777471848000,-1000.0,0.00016986,2]
[421340704,1777471848000,-930.1964204,0.00016986,2]
[421340708,1777471848000,-1000.0,0.00016986,2]
[421340700,1777471848000,-1000.0,0.00016986,2]
[421340677,1777471848000,-1400.0,0.00016741,2]
[421340674,1777471848000,-1400.0,0.00016741,2]
[421340681,1777471848000,-150.0,0.00016834,2]
[421340684,1777471848000,-590.0,0.00016967,2]
[421340682,1777471848000,-274.0,0.00016961,2]
[421340680,1777471848000,-1377.0,0.00016741,2]
[421340683,1777471848000,-503.0,0.00016967,2]
[421340714,1777471848000,-1000.0,0.00016986,2]
[421340687,1777471848000,-1036.24152331,0.00016986,2]
[421340688,1777471848000,-1000.0,0.00016986,2]
[421340686,1777471848000,-150.0,0.00016986,2]
[421340685,1777471848000,-1000.0,0.00016986,2]
[421340689,1777471848000,-1000.0,0.00016986,2]
[421340731,1777471848000,-233.0,0.00017268,2]
[421340692,1777471848000,-1000.0,0.00016986,2]
[421340702,1777471848000,-1000.0,0.00016986,2]
[421340693,1777471848000,-370.63250296,0.00016986,2]
[421340691,1777471848000,-1000.0,0.00016986,2]
[421340694,1777471848000,-1000.0,0.00016986,2]
[421340695,1777471848000,-1000.0,0.00016986,2]
[421340697,1777471848000,-1000.0,0.00016986,2]
[421340698,1777471848000,-1000.0,0.00016986,2]
[421340696,1777471848000,-1000.0,0.00016986,2]
[421340699,1777471848000,-1000.0,0.00016986,2]
[421340690,1777471848000,-1000.0,0.00016986,2]
[421340701,1777471848000,-1000.0,0.00016986,2]
[421340742,1777471849000,-1500.0,0.00017534,2]
[421340741,1777471849000,-1500.0,0.00017534,2]
[421340738,1777471849000,-1500.0,0.00017534,2]
[421340739,1777471849000,-214.79289981,0.00017534,2]
[421340732,1777471849000,-2511.0,0.00017268,2]
[421340735,1777471849000,-8763.51529868,0.00017279,2]
[421340736,1777471849000,-1500.0,0.00017534,2]
[421340734,1777471849000,-162.0,0.00017268,2]
[421340733,1777471849000,-406.0,0.00017268,2]
[421340740,1777471849000,-1500.0,0.00017534,2]
[421340737,1777471849000,-150.0,0.00017534,2]
[421340743,1777471849000,-1500.0,0.00017534,2]
[421340749,1777471849000,-1500.0,0.00017534,2]
[421340747,1777471849000,-1500.0,0.00017534,2]
[421340754,1777471849000,-1500.0,0.00017534,2]
[421340752,1777471849000,-568.73603256,0.00017534,2]
[421340750,1777471849000,-751.33530534,0.00017534,2]
[421340753,1777471849000,-1500.0,0.00017534,2]
[421340755,1777471849000,-1500.0,0.00017534,2]
[421340746,1777471849000,-1500.0,0.00017534,2]
[421340751,1777471849000,-1500.0,0.00017534,2]
[421340748,1777471849000,-1500.0,0.00017534,2]
[421340745,1777471849000,-1500.0,0.00017534,2]
[421340744,1777471849000,-1241.1099402,0.00017534,2]
[421340756,1777471849000,-1020.51590239,0.00017534,2]
[421340757,1777471850000,-1352.0,0.00013065,2]
[421340759,1777471850000,-1071.32022493,0.00013065,2]
[421340761,1777471850000,-479.48409761,0.00017534,2]
[421340758,1777471850000,-1359.67977507,0.00013065,2]
[421340765,1777471850000,-1500.0,0.00017534,2]
[421340762,1777471850000,-1500.0,0.00017534,2]
[421340760,1777471850000,-3783.0,0.00016065,2]
[421340766,1777471850000,-1500.0,0.00017534,2]
[421340763,1777471850000,-1500.0,0.00017534,2]
[421340768,1777471850000,-1303.2013144,0.00017534,2]
[421340767,1777471850000,-1198.99436307,0.00017534,2]
[421340770,1777471850000,-1500.0,0.00017534,2]
[421340772,1777471850000,-460.7236144,0.00017534,2]
[421340771,1777471850000,-1500.0,0.00017534,2]
[421340764,1777471850000,-1500.0,0.00017534,2]
[421340769,1777471850000,-196.7986856,0.00017534,2]
[421340773,1777471867000,2071.93315,7.945e-05,2]
[421340774,1777471868000,150.76,8.245e-05,2]
[421340775,1777471983000,324.051227,0.000301,120]
[421340785,1777471992000,10000.01,8.276e-05,2]
[421340784,1777471992000,10000.01,8.276e-05,2]
[421340783,1777471992000,10000.01,8.276e-05,2]
[421340782,1777471992000,10000.01,8.276e-05,2]
[421340781,1777471992000,10000.01,8.276e-05,2]
[421340779,1777471992000,10000.01,8.276e-05,2]
[421340780,1777471992000,10000.01,8.276e-05,2]
[421340778,1777471992000,10000.01,8.276e-05,2]
[421340777,1777471992000,10000.01,8.276e-05,2]
[421340776,1777471992000,3860.95455,8.276e-05,2]
[421340786,1777471995000,-572.30052895,8.276e-05,2]
[421340787,1777472009000,-172.0255236,8.276e-05,2]
[421340788,1777472014000,-257.0,8.276e-05,2]
[421340789,1777472016000,-259.0,8.276e-05,2]
[421340790,1777472017000,-258.39654791,8.276e-05,2]
[421340791,1777472022000,-450.0,8.276e-05,2]
[421340792,1777472024000,-983.25892248,8.276e-05,2]
[421340793,1777472027000,-277.9744764,8.276e-05,2]
[421340794,1777472030000,-208.39654791,8.276e-05,2]
[421340795,1777472032000,-187.03293757,8.276e-05,2]
[421340797,1777472047000,2862.162476,7.945e-05,2]
[421340803,1777472072000,500.0,8.275e-05,2]
[421340800,1777472072000,500.0,8.275e-05,2]
[421340799,1777472072000,500.0,8.275e-05,2]
[421340802,1777472072000,500.0,8.275e-05,2]
[421340801,1777472072000,500.0,8.275e-05,2]
[421340804,1777472072000,500.0,8.275e-05,2]
[421340798,1777472072000,500.0,8.275e-05,2]
[421340806,1777472072000,500.0,8.275e-05,2]
[421340812,1777472072000,79.48037403,8.275e-05,2]
[421340810,1777472072000,558.36714997,8.275e-05,2]